[Event "*** Titled Tuesday Blitz"]
[Site "Chess.com"]
[Date "2020.04.28"]
[Round "8"]
[White "GMMarcinDziuba"]
[Black "MikaelyanArman"]
[Result "1-0"]
[WhiteElo "2624"]
[BlackElo "2741"]
[TimeControl "180+1"]
[EndTime "11:37:33 PDT"]
[Termination "GMMarcinDziuba won by checkmate"]

1. e4 {[%clk 0:03:00.9]} 1... e5 {[%clk 0:02:58.7]} 2. Nf3 {[%clk 0:02:59.3]}
2... Nc6 {[%clk 0:02:58.2]} 3. Bc4 {[%clk 0:02:57.4]} 3... Bc5 {[%clk
0:02:57.5]} 4. d3 {[%clk 0:02:52.1]} 4... Nf6 {[%clk 0:02:56.7]} 5. Nbd2 {[%clk
0:02:50.3]} 5... a6 {[%clk 0:02:54.7]} 6. a4 {[%clk 0:02:46.8]} 6... d6 {[%clk
0:02:53.9]} 7. c3 {[%clk 0:02:45.1]} 7... O-O {[%clk 0:02:48.6]} 8. h3 {[%clk
0:02:42.3]} 8... Be6 {[%clk 0:02:47.4]} 9. Bxe6 {[%clk 0:02:30.4]} 9... fxe6
{[%clk 0:02:48.3]} 10. Nf1 {[%clk 0:02:30.3]} 10... d5 {[%clk 0:02:44.6]} 11.
Ng3 {[%clk 0:02:30.1]} 11... dxe4 {[%clk 0:02:41.6]} 12. Nxe4 {[%clk 0:02:21.2]}
12... Nxe4 {[%clk 0:02:40.4]} 13. dxe4 {[%clk 0:02:22.1]} 13... Qxd1+ {[%clk
0:02:39.1]} 14. Kxd1 {[%clk 0:02:21.9]} 14... Bxf2 {[%clk 0:02:40]} 15. Ke2
{[%clk 0:02:21.4]} 15... Bc5 {[%clk 0:02:29.9]} 16. b4 {[%clk 0:02:18]} 16...
Bd6 {[%clk 0:02:30.4]} 17. Be3 {[%clk 0:02:14.8]} 17... h6 {[%clk 0:02:18.8]}
18. h4 {[%clk 0:02:01.6]} 18... Ne7 {[%clk 0:02:08.1]} 19. h5 {[%clk 0:02:01.4]}
19... Kh7 {[%clk 0:02:08.4]} 20. Rab1 {[%clk 0:01:43.9]} 20... Ng8 {[%clk
0:02:07.2]} 21. c4 {[%clk 0:01:43.1]} 21... c6 {[%clk 0:02:00]} 22. c5 {[%clk
0:01:22.6]} 22... Bc7 {[%clk 0:01:59.7]} 23. Rh4 {[%clk 0:01:03.8]} 23... Nf6
{[%clk 0:01:31.9]} 24. Nd2 {[%clk 0:01:02.9]} 24... Bd8 {[%clk 0:01:16.4]} 25.
Nc4 {[%clk 0:00:48.5]} 25... Nd5 {[%clk 0:01:16.3]} 26. exd5 {[%clk 0:00:45.8]}
26... exd5 {[%clk 0:01:14.9]} 27. Rg4 {[%clk 0:00:26]} 27... dxc4 {[%clk
0:01:15]} 28. Rxc4 {[%clk 0:00:26]} 28... Bf6 {[%clk 0:01:05.2]} 29. g4 {[%clk
0:00:20.8]} 29... Rfd8 {[%clk 0:01:02.4]} 30. Rc2 {[%clk 0:00:20.7]} 30... Rd5
{[%clk 0:01:00.5]} 31. b5 {[%clk 0:00:20.6]} 31... axb5 {[%clk 0:00:58.5]} 32.
axb5 {[%clk 0:00:21.5]} 32... Ra3 {[%clk 0:00:57.4]} 33. bxc6 {[%clk 0:00:17.9]}
33... bxc6 {[%clk 0:00:58.3]} 34. Rb6 {[%clk 0:00:14.8]} 34... Rdd3 {[%clk
0:00:46.4]} 35. Bf2 {[%clk 0:00:14.9]} 35... e4 {[%clk 0:00:42.5]} 36. Rxc6
{[%clk 0:00:15.4]} 36... Bg5 {[%clk 0:00:26.7]} 37. Re6 {[%clk 0:00:14.7]} 37...
e3 {[%clk 0:00:18.2]} 38. Be1 {[%clk 0:00:15]} 38... Rd4 {[%clk 0:00:14.5]} 39.
c6 {[%clk 0:00:15]} 39... Rxg4 {[%clk 0:00:14.7]} 40. Kf3 {[%clk 0:00:15.1]}
40... Rf4+ {[%clk 0:00:13.4]} 41. Kg2 {[%clk 0:00:14.8]} 41... Rg4+ {[%clk
0:00:10.4]} 42. Kf1 {[%clk 0:00:12.8]} 42... Ra8 {[%clk 0:00:04.8]} 43. c7
{[%clk 0:00:12.6]} 43... Rf8+ {[%clk 0:00:05]} 44. Ke2 {[%clk 0:00:12.9]} 44...
Rg2+ {[%clk 0:00:05]} 45. Kd3 {[%clk 0:00:11.8]} 45... Rxc2 {[%clk 0:00:05.1]}
46. Kxc2 {[%clk 0:00:12]} 46... Rc8 {[%clk 0:00:06]} 47. Bg3 {[%clk 0:00:10.8]}
47... Bd8 {[%clk 0:00:03.4]} 48. Rc6 {[%clk 0:00:08.3]} 48... Bf6 {[%clk
0:00:02.2]} 49. Kd3 {[%clk 0:00:07.5]} 49... Kg8 {[%clk 0:00:02.7]} 50. Kxe3
{[%clk 0:00:07.5]} 50... Kf7 {[%clk 0:00:03.6]} 51. Ke4 {[%clk 0:00:07.9]} 51...
Ke7 {[%clk 0:00:03.7]} 52. Kd5 {[%clk 0:00:08.3]} 52... Kd7 {[%clk 0:00:02.9]}
53. Rd6+ {[%clk 0:00:08.7]} 53... Ke7 {[%clk 0:00:03]} 54. Re6+ {[%clk 0:00:09]}
54... Kd7 {[%clk 0:00:03]} 55. Rc6 {[%clk 0:00:06.5]} 55... Ke7 {[%clk
0:00:03.1]} 56. Rc4 {[%clk 0:00:05.8]} 56... Kd7 {[%clk 0:00:03.5]} 57. Rc2
{[%clk 0:00:06.5]} 57... Ke7 {[%clk 0:00:03.6]} 58. Kc6 {[%clk 0:00:06]} 58...
Ke6 {[%clk 0:00:01.9]} 59. Kb7 {[%clk 0:00:06]} 59... Re8 {[%clk 0:00:01.2]} 60.
c8=Q+ {[%clk 0:00:05.8]} 60... Rxc8 {[%clk 0:00:01.7]} 61. Kxc8 {[%clk
0:00:06.6]} 61... Kf5 {[%clk 0:00:02.4]} 62. Kd7 {[%clk 0:00:06.4]} 62... Kg4
{[%clk 0:00:03.3]} 63. Bd6 {[%clk 0:00:05.8]} 63... Kxh5 {[%clk 0:00:03.7]} 64.
Ke6 {[%clk 0:00:05.9]} 64... Bd4 {[%clk 0:00:03.8]} 65. Kf5 {[%clk 0:00:05.7]}
65... g6+ {[%clk 0:00:03.7]} 66. Kf4 {[%clk 0:00:05.3]} 66... g5+ {[%clk
0:00:04.1]} 67. Kf5 {[%clk 0:00:05.7]} 67... Bg1 {[%clk 0:00:03.4]} 68. Rg2
{[%clk 0:00:05.3]} 68... Kh4 {[%clk 0:00:03.9]} 69. Rxg1 {[%clk 0:00:05.4]}
69... Kh3 {[%clk 0:00:04.8]} 70. Rh1+ {[%clk 0:00:05.6]} 70... Kg2 {[%clk
0:00:05.3]} 71. Rxh6 {[%clk 0:00:06.5]} 71... g4 {[%clk 0:00:06.1]} 72. Rg6
{[%clk 0:00:06.9]} 72... Kf3 {[%clk 0:00:07]} 73. Rxg4 {[%clk 0:00:07.3]} 73...
Ke2 {[%clk 0:00:07.9]} 74. Rf4 {[%clk 0:00:07.6]} 74... Kd3 {[%clk 0:00:08.8]}
75. Re4 {[%clk 0:00:08.1]} 75... Kc2 {[%clk 0:00:09.7]} 76. Ke5 {[%clk
0:00:08.4]} 76... Kd2 {[%clk 0:00:10.6]} 77. Kd5 {[%clk 0:00:09]} 77... Kd3
{[%clk 0:00:11.5]} 78. Bf8 {[%clk 0:00:08.8]} 78... Kc2 {[%clk 0:00:12.4]} 79.
Rd4 {[%clk 0:00:09.2]} 79... Kb3 {[%clk 0:00:12.6]} 80. Rc4 {[%clk 0:00:07.6]}
80... Kb2 {[%clk 0:00:12.8]} 81. Kd4 {[%clk 0:00:07.7]} 81... Kb1 {[%clk
0:00:13.7]} 82. Rc3 {[%clk 0:00:07.6]} 82... Ka2 {[%clk 0:00:14.6]} 83. Kd3
{[%clk 0:00:07.9]} 83... Kb1 {[%clk 0:00:15.5]} 84. Kd2 {[%clk 0:00:08]} 84...
Ka2 {[%clk 0:00:16.4]} 85. Kc2 {[%clk 0:00:08.3]} 85... Ka1 {[%clk 0:00:16.7]}
86. Ra3# {[%clk 0:00:08.2]} 1-0

[Event "*** Titled Tuesday Blitz"]
[Site "Chess.com"]
[Date "2020.04.28"]
[Round "8"]
[White "kinga2008"]
[Black "tteshan"]
[Result "1/2-1/2"]
[WhiteElo "2107"]
[BlackElo "2227"]
[TimeControl "180+1"]
[EndTime "11:37:48 PDT"]
[Termination "Game drawn - insufficient material"]

1. e4 {[%clk 0:02:57]} 1... d5 {[%clk 0:02:58]} 2. exd5 {[%clk 0:02:56.9]} 2...
Qxd5 {[%clk 0:02:58.9]} 3. Nc3 {[%clk 0:02:57.4]} 3... Qa5 {[%clk 0:02:59]} 4.
d4 {[%clk 0:02:56.2]} 4... c6 {[%clk 0:02:59.3]} 5. Nf3 {[%clk 0:02:55.2]} 5...
Nf6 {[%clk 0:02:59.2]} 6. Bc4 {[%clk 0:02:55]} 6... Bg4 {[%clk 0:02:58.1]} 7.
O-O {[%clk 0:02:53.8]} 7... e6 {[%clk 0:02:55.9]} 8. Bd2 {[%clk 0:02:51.6]} 8...
Qc7 {[%clk 0:02:55.5]} 9. h3 {[%clk 0:02:48.9]} 9... Bh5 {[%clk 0:02:54.9]} 10.
Be2 {[%clk 0:02:46.9]} 10... Bd6 {[%clk 0:02:52.7]} 11. Re1 {[%clk 0:02:39.4]}
11... Nbd7 {[%clk 0:02:51.6]} 12. Bg5 {[%clk 0:02:37.6]} 12... h6 {[%clk
0:02:46.7]} 13. Be3 {[%clk 0:02:35.4]} 13... O-O {[%clk 0:02:43.2]} 14. Qd2
{[%clk 0:02:31.4]} 14... Rfe8 {[%clk 0:02:31.1]} 15. Bxh6 {[%clk 0:02:29]} 15...
gxh6 {[%clk 0:02:30.5]} 16. Qxh6 {[%clk 0:02:29.9]} 16... Bf8 {[%clk 0:02:07.1]}
17. Qg5+ {[%clk 0:02:22.4]} 17... Bg7 {[%clk 0:02:03.9]} 18. Ne5 {[%clk
0:02:21]} 18... Bxe2 {[%clk 0:01:51.7]} 19. Rxe2 {[%clk 0:02:09.8]} 19... Nh7
{[%clk 0:01:29.6]} 20. Qh5 {[%clk 0:02:03.2]} 20... Ndf6 {[%clk 0:01:10.9]} 21.
Qh4 {[%clk 0:01:57.3]} 21... c5 {[%clk 0:01:07.6]} 22. dxc5 {[%clk 0:01:34.6]}
22... Qxc5 {[%clk 0:01:00.7]} 23. Re3 {[%clk 0:01:32]} 23... Rad8 {[%clk
0:00:34.3]} 24. Nxf7 {[%clk 0:01:27.7]} 24... Kxf7 {[%clk 0:00:22.2]} 25. Ne4
{[%clk 0:01:21.3]} 25... Nxe4 {[%clk 0:00:18.1]} 26. Qxe4 {[%clk 0:01:08.9]}
26... Nf6 {[%clk 0:00:17.6]} 27. Qxb7+ {[%clk 0:01:07.7]} 27... Rd7 {[%clk
0:00:16.8]} 28. Qf3 {[%clk 0:01:06.6]} 28... Red8 {[%clk 0:00:15.6]} 29. Rae1
{[%clk 0:01:04]} 29... Rd6 {[%clk 0:00:14.9]} 30. Rc3 {[%clk 0:00:54]} 30... Qb6
{[%clk 0:00:12.9]} 31. Qg3 {[%clk 0:00:44.8]} 31... Kg8 {[%clk 0:00:09.8]} 32.
Re5 {[%clk 0:00:36.6]} 32... Rd1+ {[%clk 0:00:09.6]} 33. Kh2 {[%clk 0:00:35.1]}
33... R1d5 {[%clk 0:00:08.9]} 34. Rce3 {[%clk 0:00:27.1]} 34... Rxe5 {[%clk
0:00:09.1]} 35. Rxe5 {[%clk 0:00:23.2]} 35... Qd6 {[%clk 0:00:10]} 36. f4 {[%clk
0:00:15.9]} 36... Nd5 {[%clk 0:00:06.5]} 37. Rg5 {[%clk 0:00:14.9]} 37... Qe7
{[%clk 0:00:06.2]} 38. Rh5 {[%clk 0:00:07.1]} 38... Rf8 {[%clk 0:00:06.1]} 39.
f5 {[%clk 0:00:03.5]} 39... Qc7 {[%clk 0:00:03.7]} 40. Qxc7 {[%clk 0:00:02.2]}
40... Nxc7 {[%clk 0:00:03.8]} 41. fxe6 {[%clk 0:00:02.7]} 41... Nxe6 {[%clk
0:00:04.6]} 42. Ra5 {[%clk 0:00:02.9]} 42... Nf4 {[%clk 0:00:05]} 43. b3 {[%clk
0:00:02.7]} 43... Bb2 {[%clk 0:00:05.9]} 44. Rxa7 {[%clk 0:00:02.2]} 44... Be5
{[%clk 0:00:06]} 45. g3 {[%clk 0:00:02.6]} 45... Nd5 {[%clk 0:00:05.9]} 46. Ra5
{[%clk 0:00:02.9]} 46... Rf2+ {[%clk 0:00:06.1]} 47. Kg1 {[%clk 0:00:03.3]}
47... Ne3 {[%clk 0:00:06.9]} 48. Rxe5 {[%clk 0:00:03.1]} 48... Re2 {[%clk
0:00:06.7]} 49. Rg5+ {[%clk 0:00:02]} 49... Kh7 {[%clk 0:00:06.5]} 50. c4 {[%clk
0:00:02.9]} 50... Kh6 {[%clk 0:00:06.6]} 51. Re5 {[%clk 0:00:03.2]} 51... Kg6
{[%clk 0:00:05.4]} 52. Re4 {[%clk 0:00:03]} 52... Kf5 {[%clk 0:00:04.7]} 53.
Rf4+ {[%clk 0:00:03.4]} 53... Ke5 {[%clk 0:00:05.1]} 54. h4 {[%clk 0:00:03.6]}
54... Rxa2 {[%clk 0:00:05.1]} 55. h5 {[%clk 0:00:02.6]} 55... Rg2+ {[%clk
0:00:04.7]} 56. Kh1 {[%clk 0:00:03]} 56... Rxg3 {[%clk 0:00:05.3]} 57. Rh4
{[%clk 0:00:03.4]} 57... Ng4 {[%clk 0:00:04.8]} 58. h6 {[%clk 0:00:02.5]} 58...
Nf2+ {[%clk 0:00:03.6]} 59. Kh2 {[%clk 0:00:01.3]} 59... Rg8 {[%clk 0:00:04.5]}
60. h7 {[%clk 0:00:01.2]} 60... Rh8 {[%clk 0:00:04.7]} 61. Kg2 {[%clk
0:00:02.1]} 61... Ne4 {[%clk 0:00:04.9]} 62. Kf3 {[%clk 0:00:02.4]} 62... Nd2+
{[%clk 0:00:05.3]} 63. Ke3 {[%clk 0:00:02.6]} 63... Nxb3 {[%clk 0:00:05.9]} 64.
Rh5+ {[%clk 0:00:02.9]} 64... Kd6 {[%clk 0:00:06.1]} 65. Ke4 {[%clk 0:00:02.4]}
65... Nc5+ {[%clk 0:00:06.2]} 66. Kd4 {[%clk 0:00:02.5]} 66... Ne6+ {[%clk
0:00:06.6]} 67. Ke4 {[%clk 0:00:02.9]} 67... Ng7 {[%clk 0:00:05.7]} 68. Rh6+
{[%clk 0:00:03.1]} 68... Kc5 {[%clk 0:00:05.4]} 69. Ke5 {[%clk 0:00:03]} 69...
Kxc4 {[%clk 0:00:03.8]} 70. Kf6 {[%clk 0:00:03.3]} 70... Ne8+ {[%clk 0:00:04.2]}
71. Ke7 {[%clk 0:00:03.3]} 71... Kd5 {[%clk 0:00:04.1]} 72. Kf7 {[%clk
0:00:03.3]} 72... Ke5 {[%clk 0:00:03.5]} 73. Re6+ {[%clk 0:00:03.2]} 73... Kf5
{[%clk 0:00:03.4]} 74. Rh6 {[%clk 0:00:03.4]} 74... Kg5 {[%clk 0:00:03.4]} 75.
Rh1 {[%clk 0:00:03.7]} 75... Nf6 {[%clk 0:00:03.5]} 76. Rg1+ {[%clk 0:00:02.8]}
76... Kf5 {[%clk 0:00:02.6]} 77. Rf1+ {[%clk 0:00:02.8]} 77... Kg5 {[%clk
0:00:02.9]} 78. Rg1+ {[%clk 0:00:01.7]} 78... Ng4 {[%clk 0:00:02.2]} 79. Kg7
{[%clk 0:00:01.3]} 79... Ra8 {[%clk 0:00:01.9]} 80. h8=Q {[%clk 0:00:01.6]}
80... Rxh8 {[%clk 0:00:01.8]} 81. Kxh8 {[%clk 0:00:02.5]} 81... Kf4 {[%clk
0:00:02.7]} 82. Kg7 {[%clk 0:00:03.4]} 82... Kf3 {[%clk 0:00:03]} 83. Ra1 {[%clk
0:00:04.3]} 83... Ne3 {[%clk 0:00:03.9]} 84. Ra3 {[%clk 0:00:04.2]} 84... Kf2
{[%clk 0:00:04.1]} 85. Kf6 {[%clk 0:00:05.1]} 85... Ke2 {[%clk 0:00:04.5]} 86.
Ke5 {[%clk 0:00:04.8]} 86... Nc4+ {[%clk 0:00:04.8]} 87. Kd5 {[%clk 0:00:05]}
87... Nxa3 {[%clk 0:00:05.7]} 1/2-1/2

[Event "*** Titled Tuesday Blitz"]
[Site "Chess.com"]
[Date "2020.04.28"]
[Round "8"]
[White "kingnb"]
[Black "KrolPawel92OnTwitch"]
[Result "1/2-1/2"]
[WhiteElo "2486"]
[BlackElo "2657"]
[TimeControl "180+1"]
[EndTime "11:37:54 PDT"]
[Termination "Game drawn by repetition"]

1. d4 {[%clk 0:03:00.9]} 1... Nf6 {[%clk 0:02:59.2]} 2. Nf3 {[%clk 0:03:00.8]}
2... b6 {[%clk 0:02:59.2]} 3. e3 {[%clk 0:02:58]} 3... e6 {[%clk 0:02:59.4]} 4.
Bd3 {[%clk 0:02:58.7]} 4... Bb7 {[%clk 0:02:59.2]} 5. O-O {[%clk 0:02:59.6]}
5... Be7 {[%clk 0:02:59.6]} 6. c4 {[%clk 0:02:57.2]} 6... O-O {[%clk 0:02:59.7]}
7. Nc3 {[%clk 0:02:57.5]} 7... d5 {[%clk 0:02:58.9]} 8. Qc2 {[%clk 0:02:57.8]}
8... h6 {[%clk 0:02:58.6]} 9. b3 {[%clk 0:02:57.5]} 9... dxc4 {[%clk 0:02:50.2]}
10. bxc4 {[%clk 0:02:58.4]} 10... c5 {[%clk 0:02:49.5]} 11. Bb2 {[%clk
0:02:46.9]} 11... cxd4 {[%clk 0:02:44.2]} 12. Nxd4 {[%clk 0:02:29.1]} 12... Nc6
{[%clk 0:02:43.9]} 13. Nxc6 {[%clk 0:02:04.3]} 13... Bxc6 {[%clk 0:02:43.3]} 14.
Rad1 {[%clk 0:02:05.2]} 14... Qc8 {[%clk 0:02:43.5]} 15. Nb5 {[%clk 0:02:03.1]}
15... Qb7 {[%clk 0:02:40.3]} 16. f3 {[%clk 0:02:01]} 16... Rac8 {[%clk
0:02:29.7]} 17. Nd4 {[%clk 0:02:00.6]} 17... Bd7 {[%clk 0:02:29.6]} 18. Qe2
{[%clk 0:02:00.4]} 18... Rfd8 {[%clk 0:02:28.5]} 19. Bb1 {[%clk 0:02:00.4]}
19... Bc5 {[%clk 0:02:24.5]} 20. Kh1 {[%clk 0:01:57.9]} 20... Qa6 {[%clk
0:02:21.3]} 21. Rc1 {[%clk 0:01:46.2]} 21... Be7 {[%clk 0:02:02.8]} 22. Rfd1
{[%clk 0:01:43.3]} 22... Ba4 {[%clk 0:02:02.8]} 23. Rd2 {[%clk 0:01:37]} 23...
Bb4 {[%clk 0:01:58.4]} 24. Rd3 {[%clk 0:01:27.4]} 24... Rxc4 {[%clk 0:01:57.7]}
25. Nc6 {[%clk 0:00:35.5]} 25... Rxc1+ {[%clk 0:01:34.2]} 26. Bxc1 {[%clk
0:00:36.4]} 26... Rxd3 {[%clk 0:01:33.7]} 27. Bxd3 {[%clk 0:00:37.3]} 27... Qc8
{[%clk 0:01:30.4]} 28. Nxb4 {[%clk 0:00:30.7]} 28... Qxc1+ {[%clk 0:01:28.9]}
29. Qf1 {[%clk 0:00:31.6]} 29... Qxe3 {[%clk 0:01:27.8]} 30. h3 {[%clk
0:00:25.3]} 30... a5 {[%clk 0:01:24.6]} 31. Nc2 {[%clk 0:00:24.8]} 31... Bxc2
{[%clk 0:01:24.3]} 32. Bxc2 {[%clk 0:00:25.7]} 32... g6 {[%clk 0:01:22]} 33. Qb1
{[%clk 0:00:23.6]} 33... Kg7 {[%clk 0:01:20.8]} 34. Qb2 {[%clk 0:00:22.3]} 34...
Qd2 {[%clk 0:01:11.7]} 35. Qb1 {[%clk 0:00:20.2]} 35... Nd5 {[%clk 0:01:08]} 36.
Qa1+ {[%clk 0:00:18.8]} 36... Qc3 {[%clk 0:01:04.2]} 37. Qd1 {[%clk 0:00:15.6]}
37... Ne3 {[%clk 0:01:03.3]} 38. Qd3 {[%clk 0:00:14.3]} 38... Qe1+ {[%clk
0:00:50.3]} 39. Kh2 {[%clk 0:00:09.9]} 39... Nf1+ {[%clk 0:00:50.2]} 40. Kg1
{[%clk 0:00:10.4]} 40... Ng3+ {[%clk 0:00:50]} 41. Kh2 {[%clk 0:00:10.9]} 41...
Ne2 {[%clk 0:00:50.5]} 42. Qe3 {[%clk 0:00:09.7]} 42... Qg3+ {[%clk 0:00:45.5]}
43. Kh1 {[%clk 0:00:09.9]} 43... Nf4 {[%clk 0:00:41.5]} 44. Qd4+ {[%clk
0:00:09.4]} 44... Kh7 {[%clk 0:00:40.1]} 45. Qd2 {[%clk 0:00:09.8]} 45... Nd5
{[%clk 0:00:37.2]} 46. Be4 {[%clk 0:00:09.5]} 46... Qe5 {[%clk 0:00:35]} 47.
Bxd5 {[%clk 0:00:09.2]} 47... Qxd5 {[%clk 0:00:35.9]} 48. Qb2 {[%clk 0:00:09]}
48... b5 {[%clk 0:00:35.1]} 49. Qf6 {[%clk 0:00:08.8]} 49... Qf5 {[%clk
0:00:32.8]} 50. Qd8 {[%clk 0:00:08.4]} 50... Qb1+ {[%clk 0:00:32.5]} 51. Kh2
{[%clk 0:00:08.3]} 51... Qxa2 {[%clk 0:00:32.1]} 52. Qd7 {[%clk 0:00:08.8]}
52... Kg7 {[%clk 0:00:29.2]} 53. Qxb5 {[%clk 0:00:08.9]} 53... Qd5 {[%clk
0:00:29.2]} 54. Qa4 {[%clk 0:00:09.1]} 54... h5 {[%clk 0:00:28.5]} 55. Qa1+
{[%clk 0:00:07.7]} 55... Kh7 {[%clk 0:00:28]} 56. Qf6 {[%clk 0:00:06.4]} 56...
e5 {[%clk 0:00:25.1]} 57. Qa6 {[%clk 0:00:04.1]} 57... h4 {[%clk 0:00:22.3]} 58.
Qf6 {[%clk 0:00:03.4]} 58... Kg8 {[%clk 0:00:18.7]} 59. Qxh4 {[%clk 0:00:02.8]}
59... Qb3 {[%clk 0:00:18.1]} 60. Qd8+ {[%clk 0:00:02.1]} 60... Kg7 {[%clk
0:00:17.2]} 61. Qxa5 {[%clk 0:00:03]} 61... Qe6 {[%clk 0:00:17.5]} 62. Qe1
{[%clk 0:00:02.6]} 62... f5 {[%clk 0:00:17.5]} 63. Kg1 {[%clk 0:00:02.8]} 63...
g5 {[%clk 0:00:17.9]} 64. Qd2 {[%clk 0:00:02.1]} 64... Kg6 {[%clk 0:00:18.2]}
65. Qc2 {[%clk 0:00:02.4]} 65... Qb6+ {[%clk 0:00:17.8]} 66. Kh2 {[%clk
0:00:03.3]} 66... Qd6 {[%clk 0:00:18.3]} 67. g4 {[%clk 0:00:03.6]} 67... e4+
{[%clk 0:00:17.1]} 68. Kg2 {[%clk 0:00:02.9]} 68... e3 {[%clk 0:00:17.4]} 69.
Qxf5+ {[%clk 0:00:01.7]} 69... Kh6 {[%clk 0:00:17.5]} 70. Qe4 {[%clk 0:00:01.8]}
70... Qd2+ {[%clk 0:00:17.2]} 71. Kh1 {[%clk 0:00:02.7]} 71... Qe1+ {[%clk
0:00:17.4]} 72. Kh2 {[%clk 0:00:02.6]} 72... Qf2+ {[%clk 0:00:17.4]} 73. Kh1
{[%clk 0:00:03.5]} 73... Qe1+ {[%clk 0:00:17]} 74. Kh2 {[%clk 0:00:03.1]} 74...
Qd2+ {[%clk 0:00:17]} 75. Kh1 {[%clk 0:00:03.4]} 75... Qc1+ {[%clk 0:00:16.9]}
76. Kh2 {[%clk 0:00:03.5]} 76... Qb2+ {[%clk 0:00:16.4]} 77. Kh1 {[%clk
0:00:03.9]} 77... e2 {[%clk 0:00:15.5]} 78. Qe6+ {[%clk 0:00:03.6]} 78... Kg7
{[%clk 0:00:15.8]} 79. Qe7+ {[%clk 0:00:04]} 79... Kh8 {[%clk 0:00:15.9]} 80.
Qe8+ {[%clk 0:00:04.6]} 80... Kg7 {[%clk 0:00:15.6]} 81. Qe7+ {[%clk 0:00:05.2]}
81... Kg6 {[%clk 0:00:16]} 82. Qe6+ {[%clk 0:00:05.6]} 82... Kg7 {[%clk
0:00:16.5]} 83. Qe7+ {[%clk 0:00:06.1]} 1/2-1/2